[Event "Titled Tuesday Blitz July 25 Late 2023"]
[White "O`Gorman, Tom"]
[Black "Matinian, Nikita"]
[WhiteFideId "2508249"]
[BlackFideId "24129100"]
[WhiteElo "2511"]
[BlackElo "2730"]
[Result "0-1"]
[Round "8"]
[TimeControl "180+2"]
[Date "2023.07.25"]
[WhiteClock "0:00:16"]
[BlackClock "0:00:11"]
[Board "51"]

1. d4 {[%clk 0:02:59]}  Nf6 {[%clk 0:02:59]} 2. c4 {[%clk 0:02:59]}  e6 {[%clk 0:03:00]} 3. Nc3 {[%clk 0:02:59]}  Bb4 {[%clk 0:03:00]} 4. f3 {[%clk 0:02:59]}  c5 {[%clk 0:02:58]} 5. d5 {[%clk 0:02:58]}  d6 {[%clk 0:02:57]} 6. e4 {[%clk 0:02:58]}  b5 {[%clk 0:02:56]} 7. Ne2 {[%clk 0:02:57]}  bxc4 {[%clk 0:02:55]} 8. Nf4 {[%clk 0:02:57]}  e5 {[%clk 0:02:54]} 9. Ne2 {[%clk 0:02:57]}  Ng8 {[%clk 0:02:51]} 10. Ng3 {[%clk 0:02:56]}  Ne7 {[%clk 0:02:51]} 11. Bxc4 {[%clk 0:02:56]}  h5 {[%clk 0:02:51]} 12. h4 {[%clk 0:02:51]}  Ng6 {[%clk 0:02:48]} 13. Bg5 {[%clk 0:02:50]}  f6 {[%clk 0:02:47]} 14. Be3 {[%clk 0:02:50]}  Kf7 {[%clk 0:02:30]} 15. Kf2 {[%clk 0:02:49]}  Bxc3 {[%clk 0:02:25]} 16. bxc3 {[%clk 0:02:48]}  Nd7 {[%clk 0:02:26]} 17. Nf5 {[%clk 0:02:44]}  Nb6 {[%clk 0:02:25]} 18. Bb5 {[%clk 0:02:44]}  Bxf5 {[%clk 0:02:25]} 19. exf5 {[%clk 0:02:44]}  Ne7 {[%clk 0:02:23]} 20. g4 {[%clk 0:02:43]}  Kf8 {[%clk 0:02:01]} 21. Bc6 {[%clk 0:02:05]}  Rc8 {[%clk 0:01:58]} 22. Qd2 {[%clk 0:01:57]}  Nxc6 {[%clk 0:01:52]} 23. dxc6 {[%clk 0:01:58]}  Rxc6 {[%clk 0:01:53]} 24. g5 {[%clk 0:01:58]}  d5 {[%clk 0:01:48]} 25. Rhd1 {[%clk 0:01:42]}  Qd7 {[%clk 0:01:41]} 26. Qd3 {[%clk 0:01:38]}  d4 {[%clk 0:01:25]} 27. Bc1 {[%clk 0:01:34]}  Nd5 {[%clk 0:01:19]} 28. Ba3 {[%clk 0:01:29]}  Ne7 {[%clk 0:00:57]} 29. cxd4 {[%clk 0:01:21]}  exd4 {[%clk 0:00:54]} 30. Rac1 {[%clk 0:01:19]}  Qxf5 {[%clk 0:00:50]} 31. Qxf5 {[%clk 0:01:03]}  Nxf5 {[%clk 0:00:50]} 32. Bxc5+ {[%clk 0:00:59]}  Kf7 {[%clk 0:00:50]} 33. Bxa7 {[%clk 0:00:59]}  Rxc1 {[%clk 0:00:41]} 34. Rxc1 {[%clk 0:01:00]}  Ra8 {[%clk 0:00:38]} 35. Rc7+ {[%clk 0:00:59]}  Kg6 {[%clk 0:00:38]} 36. gxf6 {[%clk 0:00:58]}  gxf6 {[%clk 0:00:38]} 37. Rd7 {[%clk 0:00:58]}  Nxh4 {[%clk 0:00:37]} 38. Kg3 {[%clk 0:00:54]}  Nf5+ {[%clk 0:00:37]} 39. Kf4 {[%clk 0:00:54]}  h4 {[%clk 0:00:36]} 40. Kg4 {[%clk 0:00:54]}  Rh8 {[%clk 0:00:32]} 41. Kh3 {[%clk 0:00:52]}  Rh7 {[%clk 0:00:26]} 42. Rxh7 {[%clk 0:00:50]}  Kxh7 {[%clk 0:00:27]} 43. Bc5 {[%clk 0:00:42]}  Kg6 {[%clk 0:00:26]} 44. Kg4 {[%clk 0:00:37]}  Kf7 {[%clk 0:00:15]} 45. a4 {[%clk 0:00:28]}  d3 {[%clk 0:00:15]} 46. Bb4 {[%clk 0:00:28]}  Ke6 {[%clk 0:00:12]} 47. Bd2 {[%clk 0:00:26]}  Kd5 {[%clk 0:00:10]} 48. a5 {[%clk 0:00:23]}  Kc6 {[%clk 0:00:10]} 49. Kh3 {[%clk 0:00:18]}  Kb5 {[%clk 0:00:10]} 50. Kg4 {[%clk 0:00:18]}  Nd4 {[%clk 0:00:10]} 51. Kf4 {[%clk 0:00:16]}  h3 {[%clk 0:00:09]} 52. Kg3 {[%clk 0:00:15]}  h2 {[%clk 0:00:09]} 53. Kg2 {[%clk 0:00:15]}  Nxf3 {[%clk 0:00:10]} 54. Be3 {[%clk 0:00:15]}  d2 {[%clk 0:00:10]} 55. Bxd2 {[%clk 0:00:15]}  Nxd2 {[%clk 0:00:11]} 56. Kxh2 {[%clk 0:00:16]}  Ne4 {[%clk 0:00:10]} 57. Kh3 {[%clk 0:00:16]}  f5 {[%clk 0:00:10]} 58. Kg2 {[%clk 0:00:15]}  Kxa5 {[%clk 0:00:10]} 59. Kf3 {[%clk 0:00:15]}  Kb5 {[%clk 0:00:11]} 60. Kf4 {[%clk 0:00:16]}  Nd6 {[%clk 0:00:11]} 61. Ke5 {[%clk 0:00:16]}  Kc6 {[%clk 0:00:11]} 0-1


[Site "https://www.chess.com"]

[Event "Titled Tuesday Blitz July 25 Late 2023"]
[White "Plotkin, Victor"]
[Black "Adewumi, Tanitoluwa"]
[WhiteFideId "2606674"]
[BlackFideId "30966396"]
[WhiteElo "2503"]
[BlackElo "2685"]
[Result "0-1"]
[Round "8"]
[TimeControl "180+2"]
[Date "2023.07.25"]
[WhiteClock "0:00:07"]
[BlackClock "0:00:26"]
[Board "52"]

1. e4 {[%clk 0:03:00]}  c5 {[%clk 0:02:59]} 2. c3 {[%clk 0:03:01]}  Nf6 {[%clk 0:02:59]} 3. e5 {[%clk 0:03:01]}  Nd5 {[%clk 0:03:00]} 4. d4 {[%clk 0:03:01]}  cxd4 {[%clk 0:02:59]} 5. Nf3 {[%clk 0:03:01]}  e6 {[%clk 0:02:59]} 6. Bc4 {[%clk 0:03:01]}  Nc6 {[%clk 0:02:58]} 7. cxd4 {[%clk 0:03:01]}  d6 {[%clk 0:02:59]} 8. O-O {[%clk 0:03:01]}  Be7 {[%clk 0:02:55]} 9. Nc3 {[%clk 0:03:01]}  Nxc3 {[%clk 0:02:55]} 10. bxc3 {[%clk 0:03:01]}  dxe5 {[%clk 0:02:55]} 11. Nxe5 {[%clk 0:03:01]}  Nxe5 {[%clk 0:02:53]} 12. dxe5 {[%clk 0:03:02]}  O-O {[%clk 0:02:53]} 13. Qh5 {[%clk 0:02:58]}  b6 {[%clk 0:02:44]} 14. Rd1 {[%clk 0:02:55]}  Qc7 {[%clk 0:02:37]} 15. Bd3 {[%clk 0:02:55]}  g6 {[%clk 0:02:36]} 16. Qh6 {[%clk 0:02:54]}  Bb7 {[%clk 0:02:22]} 17. Bg5 {[%clk 0:02:48]}  Bxg5 {[%clk 0:02:13]} 18. Qxg5 {[%clk 0:02:47]}  Rad8 {[%clk 0:02:09]} 19. h4 {[%clk 0:02:29]}  Qxc3 {[%clk 0:01:57]} 20. Rac1 {[%clk 0:02:21]}  Qa3 {[%clk 0:01:44]} 21. Bxg6 {[%clk 0:01:35]}  Rxd1+ {[%clk 0:01:36]} 22. Rxd1 {[%clk 0:01:35]}  hxg6 {[%clk 0:01:19]} 23. h5 {[%clk 0:01:35]}  Qa4 {[%clk 0:01:05]} 24. Rd6 {[%clk 0:01:25]}  Qe4 {[%clk 0:00:50]} 25. Rd7 {[%clk 0:00:45]}  Bc6 {[%clk 0:00:39]} 26. Rc7 {[%clk 0:00:40]}  Bd5 {[%clk 0:00:33]} 27. Rxa7 {[%clk 0:00:26]}  Qf5 {[%clk 0:00:21]} 28. Qxf5 {[%clk 0:00:21]}  gxf5 {[%clk 0:00:22]} 29. f3 {[%clk 0:00:16]}  Kg7 {[%clk 0:00:20]} 30. Kh2 {[%clk 0:00:16]}  Rh8 {[%clk 0:00:20]} 31. Ra6 {[%clk 0:00:15]}  Rxh5+ {[%clk 0:00:20]} 32. Kg3 {[%clk 0:00:15]}  b5 {[%clk 0:00:20]} 33. Rb6 {[%clk 0:00:15]}  Bxa2 {[%clk 0:00:20]} 34. Rxb5 {[%clk 0:00:16]}  Bd5 {[%clk 0:00:21]} 35. Kf4 {[%clk 0:00:14]}  Rh4+ {[%clk 0:00:21]} 36. Kg5 {[%clk 0:00:12]}  Rh6 {[%clk 0:00:21]} 37. Rc5 {[%clk 0:00:10]}  Rg6+ {[%clk 0:00:22]} 38. Kf4 {[%clk 0:00:10]}  Rxg2 {[%clk 0:00:22]} 39. Rc7 {[%clk 0:00:09]}  Rf2 {[%clk 0:00:22]} 40. Rc3 {[%clk 0:00:08]}  Rxf3+ {[%clk 0:00:23]} 41. Rxf3 {[%clk 0:00:08]}  Bxf3 {[%clk 0:00:24]} 42. Kxf3 {[%clk 0:00:09]}  f6 {[%clk 0:00:25]} 43. Kf4 {[%clk 0:00:09]}  fxe5+ {[%clk 0:00:25]} 44. Kxe5 {[%clk 0:00:07]}  Kg6 {[%clk 0:00:26]} 0-1


[Site "https://www.chess.com"]

[Event "Titled Tuesday Blitz July 25 Late 2023"]
[White "Danielyan, Vahe"]
[Black "Grossboss19"]
[WhiteFideId "13304828"]
[WhiteElo "2644"]
[BlackElo "2480"]
[Result "0-1"]
[Round "8"]
[TimeControl "180+2"]
[Date "2023.07.25"]
[WhiteClock "0:02:21"]
[BlackClock "0:01:50"]
[Board "55"]

1. d4 {[%clk 0:03:00]}  f5 {[%clk 0:02:56]} 2. g4 {[%clk 0:02:59]}  fxg4 {[%clk 0:02:52]} 3. h3 {[%clk 0:02:59]}  d5 {[%clk 0:02:49]} 4. hxg4 {[%clk 0:02:58]}  Bxg4 {[%clk 0:02:45]} 5. Bh3 {[%clk 0:02:58]}  Bxh3 {[%clk 0:02:45]} 6. Nxh3 {[%clk 0:02:58]}  Nf6 {[%clk 0:02:45]} 7. Ng5 {[%clk 0:02:57]}  Qd7 {[%clk 0:02:43]} 8. Nc3 {[%clk 0:02:56]}  Nc6 {[%clk 0:02:40]} 9. Bf4 {[%clk 0:02:56]}  a6 {[%clk 0:02:35]} 10. Qd2 {[%clk 0:02:53]}  e6 {[%clk 0:02:35]} 11. O-O-O {[%clk 0:02:52]}  O-O-O {[%clk 0:02:35]} 12. f3 {[%clk 0:02:52]}  h6 {[%clk 0:02:33]} 13. Nh3 {[%clk 0:02:41]}  g5 {[%clk 0:02:30]} 14. Nxg5 {[%clk 0:02:41]}  hxg5 {[%clk 0:02:22]} 15. Rxh8 {[%clk 0:02:42]}  gxf4 {[%clk 0:02:22]} 16. Qxf4 {[%clk 0:02:43]}  Bg7 {[%clk 0:02:18]} 17. Rxd8+ {[%clk 0:02:42]}  Nxd8 {[%clk 0:02:18]} 18. Rg1 {[%clk 0:02:40]}  Qf7 {[%clk 0:02:16]} 19. Na4 {[%clk 0:02:39]}  Ne8 {[%clk 0:02:04]} 20. Qxf7 {[%clk 0:02:39]}  Nxf7 {[%clk 0:02:03]} 21. e3 {[%clk 0:02:39]}  b6 {[%clk 0:02:00]} 22. Nc3 {[%clk 0:02:39]}  Kd7 {[%clk 0:01:59]} 23. Ne2 {[%clk 0:02:38]}  Bh6 {[%clk 0:01:59]} 24. Kd2 {[%clk 0:02:37]}  Ned6 {[%clk 0:01:57]} 25. b3 {[%clk 0:02:32]}  Nf5 {[%clk 0:01:57]} 26. f4 {[%clk 0:02:33]}  N7d6 {[%clk 0:01:56]} 27. Rh1 {[%clk 0:02:30]}  Ne4+ {[%clk 0:01:54]} 28. Ke1 {[%clk 0:02:29]}  Bf8 {[%clk 0:01:53]} 29. Rh3 {[%clk 0:02:29]}  Bb4+ {[%clk 0:01:52]} 30. Kf1 {[%clk 0:02:21]}  Bd2 {[%clk 0:01:50]} 0-1


[Site "https://www.chess.com"]

[Event "Titled Tuesday Blitz July 25 Late 2023"]
[White "Attacker_2006"]
[Black "Vega Gutierrez, Sabrina"]
[BlackFideId "2219026"]
[WhiteElo "2574"]
[BlackElo "2437"]
[Result "1-0"]
[Round "8"]
[TimeControl "180+2"]
[Date "2023.07.25"]
[WhiteClock "0:01:47"]
[BlackClock "0:00:00"]
[Board "63"]

1. e4 {[%clk 0:03:00]}  c5 {[%clk 0:02:59]} 2. Nc3 {[%clk 0:03:00]}  Nc6 {[%clk 0:02:59]} 3. Bb5 {[%clk 0:02:59]}  Nd4 {[%clk 0:02:58]} 4. Nf3 {[%clk 0:03:00]}  a6 {[%clk 0:02:58]} 5. Bd3 {[%clk 0:02:58]}  Nc6 {[%clk 0:02:57]} 6. O-O {[%clk 0:02:57]}  e6 {[%clk 0:02:54]} 7. Nd5 {[%clk 0:02:56]}  d6 {[%clk 0:02:54]} 8. Ne3 {[%clk 0:02:52]}  Nf6 {[%clk 0:02:53]} 9. c3 {[%clk 0:02:53]}  Be7 {[%clk 0:02:53]} 10. Bc2 {[%clk 0:02:53]}  O-O {[%clk 0:02:18]} 11. d4 {[%clk 0:02:53]}  cxd4 {[%clk 0:02:18]} 12. cxd4 {[%clk 0:02:54]}  d5 {[%clk 0:02:15]} 13. e5 {[%clk 0:02:53]}  Ne4 {[%clk 0:02:15]} 14. a3 {[%clk 0:02:48]}  Bd7 {[%clk 0:01:56]} 15. Ne1 {[%clk 0:02:48]}  f6 {[%clk 0:01:44]} 16. f3 {[%clk 0:02:33]}  Ng5 {[%clk 0:01:38]} 17. h4 {[%clk 0:02:22]}  Nf7 {[%clk 0:01:37]} 18. f4 {[%clk 0:02:20]}  Qb6 {[%clk 0:01:29]} 19. Qd3 {[%clk 0:02:12]}  g6 {[%clk 0:01:26]} 20. Nf3 {[%clk 0:02:12]}  Na7 {[%clk 0:01:01]} 21. Rf2 {[%clk 0:02:00]}  Rac8 {[%clk 0:00:59]} 22. h5 {[%clk 0:02:00]}  f5 {[%clk 0:00:56]} 23. hxg6 {[%clk 0:01:59]}  hxg6 {[%clk 0:00:56]} 24. g4 {[%clk 0:02:00]}  Bb5 {[%clk 0:00:51]} 25. Qb3 {[%clk 0:02:00]}  Qc7 {[%clk 0:00:41]} 26. gxf5 {[%clk 0:02:00]}  gxf5 {[%clk 0:00:35]} 27. Bd2 {[%clk 0:01:55]}  Nh6 {[%clk 0:00:28]} 28. Rg2+ {[%clk 0:01:49]}  Kf7 {[%clk 0:00:04]} 29. Bb4 {[%clk 0:01:50]}  Bxb4 {[%clk 0:00:02]} 30. Ng5+ {[%clk 0:01:50]}  Ke7 {[%clk 0:00:01]} 31. Qxb4+ {[%clk 0:01:50]}  Kd7 {[%clk 0:00:00]} 32. Nxd5 {[%clk 0:01:47]} 1-0


[Site "https://www.chess.com"]

[Event "Titled Tuesday Blitz July 25 Late 2023"]
[White "EsmeraldasAnderson03"]
[Black "Vovk, Orest"]
[BlackFideId "14113490"]
[WhiteElo "2434"]
[BlackElo "2567"]
[Result "0-1"]
[Round "8"]
[TimeControl "180+2"]
[Date "2023.07.25"]
[WhiteClock "0:00:00"]
[BlackClock "0:00:39"]
[Board "65"]

1. d4 {[%clk 0:03:00]}  Nh6 {[%clk 0:02:56]} 2. Bxh6 {[%clk 0:02:57]}  gxh6 {[%clk 0:02:55]} 3. e4 {[%clk 0:02:58]}  c5 {[%clk 0:02:55]} 4. c3 {[%clk 0:02:57]}  Qb6 {[%clk 0:02:55]} 5. Qb3 {[%clk 0:02:56]}  cxd4 {[%clk 0:02:49]} 6. Qxb6 {[%clk 0:02:55]}  axb6 {[%clk 0:02:50]} 7. cxd4 {[%clk 0:02:56]}  Nc6 {[%clk 0:02:51]} 8. d5 {[%clk 0:02:53]}  Nb4 {[%clk 0:02:49]} 9. Kd2 {[%clk 0:02:52]}  Rxa2 {[%clk 0:02:40]} 10. Rxa2 {[%clk 0:02:51]}  Nxa2 {[%clk 0:02:41]} 11. Na3 {[%clk 0:02:46]}  Bg7 {[%clk 0:02:36]} 12. Nc4 {[%clk 0:02:38]}  b5 {[%clk 0:02:29]} 13. Nb6 {[%clk 0:02:38]}  O-O {[%clk 0:02:28]} 14. Nf3 {[%clk 0:02:33]}  d6 {[%clk 0:02:16]} 15. Nxc8 {[%clk 0:02:19]}  Rxc8 {[%clk 0:02:15]} 16. Bxb5 {[%clk 0:02:19]}  Bxb2 {[%clk 0:02:11]} 17. Rb1 {[%clk 0:01:53]}  Bf6 {[%clk 0:02:10]} 18. Bd3 {[%clk 0:01:07]}  Rc7 {[%clk 0:02:02]} 19. Ng1 {[%clk 0:00:51]}  Bg5+ {[%clk 0:01:55]} 20. Ke1 {[%clk 0:00:48]}  Nc3 {[%clk 0:01:32]} 21. Rb3 {[%clk 0:00:38]}  Na4 {[%clk 0:01:20]} 22. Ne2 {[%clk 0:00:28]}  Nc5 {[%clk 0:01:18]} 23. Rc3 {[%clk 0:00:28]}  Nxd3+ {[%clk 0:01:18]} 24. Rxd3 {[%clk 0:00:29]}  Bf6 {[%clk 0:01:17]} 25. Rb3 {[%clk 0:00:29]}  Kg7 {[%clk 0:01:07]} 26. Ng3 {[%clk 0:00:28]}  e6 {[%clk 0:01:03]} 27. Nh5+ {[%clk 0:00:23]}  Kg6 {[%clk 0:01:02]} 28. Nf4+ {[%clk 0:00:22]}  Kg5 {[%clk 0:01:01]} 29. g3 {[%clk 0:00:05]}  e5 {[%clk 0:00:51]} 30. Ng2 {[%clk 0:00:00]}  Kg4 {[%clk 0:00:39]} 0-1


[Site "https://www.chess.com"]

[Event "Titled Tuesday Blitz July 25 Late 2023"]
[White "Yu, Jennifer"]
[Black "Fonseca Manrique, Enrique"]
[WhiteFideId "2078341"]
[BlackFideId "5114330"]
[WhiteElo "2378"]
[BlackElo "2560"]
[Result "1/2-1/2"]
[Round "8"]
[TimeControl "180+2"]
[Date "2023.07.25"]
[WhiteClock "0:00:07"]
[BlackClock "0:00:15"]
[Board "66"]

1. d4 {[%clk 0:03:00]}  Nf6 {[%clk 0:02:54]} 2. c4 {[%clk 0:03:00]}  c5 {[%clk 0:02:54]} 3. d5 {[%clk 0:03:00]}  b5 {[%clk 0:02:54]} 4. cxb5 {[%clk 0:03:00]}  a6 {[%clk 0:02:55]} 5. bxa6 {[%clk 0:03:01]}  g6 {[%clk 0:02:55]} 6. Nc3 {[%clk 0:03:01]}  Bg7 {[%clk 0:02:55]} 7. e4 {[%clk 0:03:01]}  O-O {[%clk 0:02:56]} 8. Nf3 {[%clk 0:02:59]}  Qa5 {[%clk 0:02:53]} 9. Bd2 {[%clk 0:02:56]}  Bxa6 {[%clk 0:02:52]} 10. Bxa6 {[%clk 0:02:52]}  Qxa6 {[%clk 0:02:53]} 11. Qe2 {[%clk 0:02:53]}  d6 {[%clk 0:02:52]} 12. Qxa6 {[%clk 0:02:48]}  Nxa6 {[%clk 0:02:53]} 13. Ke2 {[%clk 0:02:47]}  Rfb8 {[%clk 0:02:51]} 14. Rab1 {[%clk 0:02:44]}  Nd7 {[%clk 0:02:41]} 15. b3 {[%clk 0:02:26]}  Nb4 {[%clk 0:02:29]} 16. a4 {[%clk 0:02:23]}  Rb7 {[%clk 0:02:14]} 17. Nb5 {[%clk 0:02:17]}  Na6 {[%clk 0:01:50]} 18. Rhc1 {[%clk 0:02:11]}  Rab8 {[%clk 0:01:50]} 19. Rc2 {[%clk 0:01:42]}  Bf6 {[%clk 0:01:46]} 20. g4 {[%clk 0:01:35]}  Bg7 {[%clk 0:01:38]} 21. h4 {[%clk 0:01:34]}  h6 {[%clk 0:01:35]} 22. g5 {[%clk 0:01:10]}  h5 {[%clk 0:01:35]} 23. Ne1 {[%clk 0:01:08]}  Ne5 {[%clk 0:01:30]} 24. f4 {[%clk 0:01:04]}  Ng4 {[%clk 0:01:30]} 25. Nd3 {[%clk 0:00:59]}  Kf8 {[%clk 0:01:25]} 26. Nf2 {[%clk 0:00:54]}  Nxf2 {[%clk 0:01:17]} 27. Kxf2 {[%clk 0:00:54]}  Ke8 {[%clk 0:01:17]} 28. Ke3 {[%clk 0:00:44]}  Kd7 {[%clk 0:01:17]} 29. Bc3 {[%clk 0:00:43]}  Bxc3 {[%clk 0:01:13]} 30. Rxc3 {[%clk 0:00:44]}  Nc7 {[%clk 0:01:07]} 31. Nxc7 {[%clk 0:00:42]}  Rxc7 {[%clk 0:01:08]} 32. e5 {[%clk 0:00:35]}  Rcb7 {[%clk 0:01:06]} 33. Kd3 {[%clk 0:00:15]}  Rb4 {[%clk 0:01:06]} 34. exd6 {[%clk 0:00:10]}  exd6 {[%clk 0:01:05]} 35. Rf1 {[%clk 0:00:08]}  Rxb3 {[%clk 0:01:01]} 36. f5 {[%clk 0:00:08]}  gxf5 {[%clk 0:00:50]} 37. Rxf5 {[%clk 0:00:07]}  Ke7 {[%clk 0:00:51]} 38. Rf1 {[%clk 0:00:06]}  R3b4 {[%clk 0:00:37]} 39. a5 {[%clk 0:00:06]}  Rd4+ {[%clk 0:00:31]} 40. Kc2 {[%clk 0:00:06]}  Ra4 {[%clk 0:00:32]} 41. Re3+ {[%clk 0:00:06]}  Kf8 {[%clk 0:00:25]} 42. g6 {[%clk 0:00:05]}  Rb7 {[%clk 0:00:23]} 43. Ref3 {[%clk 0:00:05]}  Rxa5 {[%clk 0:00:17]} 44. Rxf7+ {[%clk 0:00:05]}  Rxf7 {[%clk 0:00:18]} 45. Rxf7+ {[%clk 0:00:06]}  Kg8 {[%clk 0:00:18]} 46. Rd7 {[%clk 0:00:06]}  Ra4 {[%clk 0:00:16]} 47. Rxd6 {[%clk 0:00:06]}  Kg7 {[%clk 0:00:16]} 48. Rc6 {[%clk 0:00:06]}  Rxh4 {[%clk 0:00:16]} 49. Rxc5 {[%clk 0:00:07]}  Kxg6 {[%clk 0:00:16]} 50. Rc8 {[%clk 0:00:07]}  Rd4 {[%clk 0:00:16]} 51. Rg8+ {[%clk 0:00:07]}  Kf5 {[%clk 0:00:16]} 52. Rh8 {[%clk 0:00:05]}  Kg4 {[%clk 0:00:16]} 53. Rd8 {[%clk 0:00:05]}  h4 {[%clk 0:00:16]} 54. Kc3 {[%clk 0:00:05]}  Rd1 {[%clk 0:00:16]} 55. Kc4 {[%clk 0:00:05]}  h3 {[%clk 0:00:16]} 56. Rh8 {[%clk 0:00:05]}  Kg3 {[%clk 0:00:16]} 57. Kc5 {[%clk 0:00:05]}  h2 {[%clk 0:00:17]} 58. d6 {[%clk 0:00:05]}  h1=Q {[%clk 0:00:15]} 59. Rxh1 {[%clk 0:00:05]}  Rxh1 {[%clk 0:00:16]} 60. d7 {[%clk 0:00:06]}  Rd1 {[%clk 0:00:16]} 61. Kc6 {[%clk 0:00:06]}  Kf4 {[%clk 0:00:16]} 62. Kc7 {[%clk 0:00:07]}  Rc1+ {[%clk 0:00:16]} 63. Kb7 {[%clk 0:00:06]}  Rd1 {[%clk 0:00:16]} 64. Kc7 {[%clk 0:00:07]}  Rxd7+ {[%clk 0:00:15]} 65. Kxd7 {[%clk 0:00:07]} 1/2-1/2


[Site "https://www.chess.com"]

[Event "Titled Tuesday Blitz July 25 Late 2023"]
[White "Przybylski, Wojciech"]
[Black "kripri"]
[WhiteFideId "1117599"]
[WhiteElo "2549"]
[BlackElo "2368"]
[Result "1-0"]
[Round "8"]
[TimeControl "180+2"]
[Date "2023.07.25"]
[WhiteClock "0:00:07"]
[BlackClock "0:00:03"]
[Board "67"]

1. d4 {[%clk 0:03:00]}  d5 {[%clk 0:02:24]} 2. c4 {[%clk 0:02:58]}  e6 {[%clk 0:02:24]} 3. Nf3 {[%clk 0:02:57]}  Nf6 {[%clk 0:02:23]} 4. Nc3 {[%clk 0:02:57]}  c6 {[%clk 0:02:20]} 5. Bg5 {[%clk 0:02:55]}  Nbd7 {[%clk 0:02:08]} 6. e3 {[%clk 0:02:50]}  Qa5 {[%clk 0:02:06]} 7. Bxf6 {[%clk 0:02:48]}  Nxf6 {[%clk 0:02:06]} 8. Nd2 {[%clk 0:02:46]}  Bb4 {[%clk 0:01:58]} 9. Qc2 {[%clk 0:02:41]}  O-O {[%clk 0:01:55]} 10. Bd3 {[%clk 0:02:40]}  c5 {[%clk 0:01:30]} 11. Nb3 {[%clk 0:02:38]}  Qc7 {[%clk 0:01:23]} 12. dxc5 {[%clk 0:02:25]}  dxc4 {[%clk 0:01:09]} 13. Bxc4 {[%clk 0:02:25]}  Bxc5 {[%clk 0:01:07]} 14. O-O {[%clk 0:02:18]}  Bd6 {[%clk 0:01:04]} 15. g3 {[%clk 0:02:16]}  Qxc4 {[%clk 0:01:00]} 16. Rfd1 {[%clk 0:02:10]}  Be5 {[%clk 0:00:57]} 17. Nd4 {[%clk 0:02:02]}  Bxd4 {[%clk 0:00:49]} 18. Rxd4 {[%clk 0:02:01]}  Qc6 {[%clk 0:00:50]} 19. Rad1 {[%clk 0:01:58]}  e5 {[%clk 0:00:41]} 20. Rh4 {[%clk 0:01:53]}  Be6 {[%clk 0:00:38]} 21. Rc1 {[%clk 0:01:43]}  h6 {[%clk 0:00:34]} 22. Qe2 {[%clk 0:01:36]}  Rac8 {[%clk 0:00:30]} 23. Re1 {[%clk 0:01:15]}  Rfd8 {[%clk 0:00:30]} 24. a3 {[%clk 0:01:10]}  Bc4 {[%clk 0:00:28]} 25. Qc2 {[%clk 0:01:07]}  Bd3 {[%clk 0:00:28]} 26. Qb3 {[%clk 0:01:07]}  Qf3 {[%clk 0:00:26]} 27. Qa4 {[%clk 0:00:55]}  e4 {[%clk 0:00:17]} 28. Rf4 {[%clk 0:00:50]}  Qh5 {[%clk 0:00:17]} 29. Qxa7 {[%clk 0:00:43]}  Ng4 {[%clk 0:00:17]} 30. h4 {[%clk 0:00:43]}  Ne5 {[%clk 0:00:17]} 31. Kg2 {[%clk 0:00:40]}  Nf3 {[%clk 0:00:17]} 32. Rd1 {[%clk 0:00:36]}  Qe5 {[%clk 0:00:15]} 33. Qxb7 {[%clk 0:00:32]}  Rc7 {[%clk 0:00:14]} 34. Qb6 {[%clk 0:00:31]}  Rcd7 {[%clk 0:00:13]} 35. Rc1 {[%clk 0:00:23]}  Nd2 {[%clk 0:00:12]} 36. a4 {[%clk 0:00:09]}  Nc4 {[%clk 0:00:12]} 37. Qb5 {[%clk 0:00:08]}  Qxb5 {[%clk 0:00:12]} 38. axb5 {[%clk 0:00:08]}  Nxb2 {[%clk 0:00:12]} 39. Nxe4 {[%clk 0:00:07]}  Bxe4+ {[%clk 0:00:12]} 40. Rxe4 {[%clk 0:00:07]}  Nd3 {[%clk 0:00:12]} 41. Rb1 {[%clk 0:00:07]}  Rb7 {[%clk 0:00:12]} 42. Rc4 {[%clk 0:00:07]}  Rdb8 {[%clk 0:00:12]} 43. Rd4 {[%clk 0:00:07]}  Ne5 {[%clk 0:00:13]} 44. Rd5 {[%clk 0:00:07]}  Nd7 {[%clk 0:00:13]} 45. f4 {[%clk 0:00:08]}  Kf8 {[%clk 0:00:14]} 46. e4 {[%clk 0:00:08]}  Ke7 {[%clk 0:00:14]} 47. e5 {[%clk 0:00:08]}  Nb6 {[%clk 0:00:14]} 48. Rc5 {[%clk 0:00:08]}  Nd7 {[%clk 0:00:14]} 49. Rd5 {[%clk 0:00:09]}  Rb6 {[%clk 0:00:13]} 50. Kf3 {[%clk 0:00:09]}  R8b7 {[%clk 0:00:13]} 51. Ke4 {[%clk 0:00:09]}  g6 {[%clk 0:00:13]} 52. g4 {[%clk 0:00:09]}  Nf8 {[%clk 0:00:13]} 53. f5 {[%clk 0:00:08]}  gxf5+ {[%clk 0:00:13]} 54. gxf5 {[%clk 0:00:09]}  Rc7 {[%clk 0:00:10]} 55. Kd4 {[%clk 0:00:08]}  Nd7 {[%clk 0:00:09]} 56. h5 {[%clk 0:00:07]}  Rb8 {[%clk 0:00:08]} 57. Re1 {[%clk 0:00:07]}  Rbc8 {[%clk 0:00:08]} 58. e6 {[%clk 0:00:06]}  Rc4+ {[%clk 0:00:08]} 59. Kd3 {[%clk 0:00:07]}  Rc3+ {[%clk 0:00:07]} 60. Kd2 {[%clk 0:00:07]}  fxe6 {[%clk 0:00:07]} 61. Rxe6+ {[%clk 0:00:06]}  Kf8 {[%clk 0:00:08]} 62. Rxd7 {[%clk 0:00:06]}  Rc2+ {[%clk 0:00:08]} 63. Ke3 {[%clk 0:00:06]}  R8c3+ {[%clk 0:00:08]} 64. Kf4 {[%clk 0:00:06]}  Rc4+ {[%clk 0:00:08]} 65. Ke5 {[%clk 0:00:06]}  Re2+ {[%clk 0:00:08]} 66. Kf6 {[%clk 0:00:06]}  Rxe6+ {[%clk 0:00:06]} 67. fxe6 {[%clk 0:00:06]}  Rf4+ {[%clk 0:00:05]} 68. Kg6 {[%clk 0:00:07]}  Rb4 {[%clk 0:00:04]} 69. Rb7 {[%clk 0:00:07]}  Re4 {[%clk 0:00:04]} 70. Kf6 {[%clk 0:00:07]}  Rf4+ {[%clk 0:00:03]} 71. Ke5 {[%clk 0:00:06]}  Rg4 {[%clk 0:00:03]} 72. Kd6 {[%clk 0:00:06]}  Rg5 {[%clk 0:00:04]} 73. e7+ {[%clk 0:00:06]}  Kf7 {[%clk 0:00:04]} 74. Rb8 {[%clk 0:00:06]}  Rg8 {[%clk 0:00:01]} 75. Rxg8 {[%clk 0:00:06]}  Kxg8 {[%clk 0:00:02]} 76. e8=Q+ {[%clk 0:00:06]}  Kg7 {[%clk 0:00:03]} 77. Qe7+ {[%clk 0:00:06]}  Kh8 {[%clk 0:00:04]} 78. Ke6 {[%clk 0:00:06]}  Kg8 {[%clk 0:00:03]} 79. Kf6 {[%clk 0:00:07]} 1-0


[Site "https://www.chess.com"]